bitfinex-derivatives/quotes_ETHF0:USTF0_20251118
["timestamp","ask_amount","ask_price","bid_price","bid_amount"]
[1763493781662,1.25946925,3161.6,3161.5,0.22914548]
[1763493782658,1.25946925,3161.6,3161.5,0.00474548]
[1763493782865,0.5128,3161.1,3161.0,0.14973773]
[1763493783664,1.25990898,3161.1,3161.0,0.14973773]
[1763493785460,0.5128,3161.1,3161.0,0.14973773]
[1763493786962,0.5128,3161.1,3161.0,0.54473773]
[1763493787663,0.5128,3161.1,3161.0,1.05754773]
[1763493787863,0.5128,3161.1,3161.0,0.54473773]
[1763493788060,0.5128,3161.1,3161.0,0.14973773]
[1763493788259,0.5128,3161.1,3161.0,0.54473773]
[1763493791858,0.5128,3161.1,3161.0,1.05754773]
[1763493792064,0.5128,3161.1,3161.0,0.54473773]
[1763493793264,0.5128,3161.1,3161.0,1.05754773]
[1763493793459,3.72058,3161.3,3161.2,0.395]
[1763493794461,0.51284,3160.8,3160.7,0.00474548]
[1763493794657,4.4668408,3160.8,3160.7,0.00474548]
[1763493795462,0.51288,3160.6,3160.5,0.08885573]
[1763493795665,0.51296,3160.1,3160.0,0.2496]
[1763493795866,0.51669081,3160.1,3160.0,0.64684059]
[1763493796758,0.51669081,3160.1,3160.0,0.25184059]
[1763493797160,0.51304,3159.6,3159.4,3.2078]
[1763493797571,0.51304,3159.6,3159.5,0.6446]
[1763493797966,0.00373081,3160.1,3160.0,1.15757]
[1763493798268,0.51669081,3160.1,3160.0,0.6486646]
[1763493798570,0.51669081,3160.1,3160.0,0.2536646]
[1763493799665,0.51669081,3160.1,3160.0,0.6486646]
[1763493800563,0.51669081,3160.1,3160.0,1.1616346]
[1763493800564,0.00373081,3160.1,3160.0,1.1616346]
[1763493802063,0.51669081,3160.1,3160.0,1.1616346]
[1763493802570,0.51669081,3160.1,3160.0,0.6486646]
[1763493803064,0.51669081,3160.1,3160.0,1.1616346]
[1763493806664,0.51669081,3160.1,3160.0,0.6486646]
[1763493806864,0.51669081,3160.1,3160.0,0.2583646]
[1763493807271,1.26380189,3160.1,3160.0,0.2583646]
[1763493807674,1.26380189,3160.1,3160.0,0.0040646]
[1763493809568,1.26380189,3160.1,3160.0,0.6373646]
[1763493809771,0.51669081,3160.1,3160.0,0.6373646]
[1763493811973,0.51669081,3160.1,3160.0,1.1503346]
[1763493812471,0.51669081,3160.1,3160.0,0.6373646]
[1763493814870,0.51669081,3160.1,3160.0,1.1503346]
[1763493815072,0.00373081,3160.1,3160.0,1.1503346]
[1763493816778,0.51669081,3160.1,3160.0,1.1503346]
[1763493818274,3.081e-05,3160.1,3160.0,1.1503346]
[1763493820883,0.51285,3160.9,3160.8,0.51283]
[1763493821087,0.51285,3160.9,3160.5,0.2365]
[1763493821088,0.51288,3160.7,3160.6,0.90967]
[1763493821889,0.51675976,3160.7,3160.6,0.90967]
[1763493823279,0.00387976,3160.7,3160.6,0.90967]
[1763493825287,0.51673976,3160.7,3160.6,0.90967]
[1763493826479,3.2078,3161.4,3161.3,0.3968]
[1763493826680,0.51274,3161.5,3161.4,0.3968]
[1763493826885,0.90184,3161.5,3161.4,0.3968]
[1763493827082,0.90184,3161.5,3161.4,0.90955]
[1763493827289,0.51274,3161.5,3161.4,0.90955]
[1763493827593,0.51680708,3161.5,3161.4,0.90955]
[1763493828092,0.00406708,3161.5,3161.4,0.90955]
[1763493828496,0.51263,3162.1,3162.0,0.5357]
[1763493829595,0.90461962,3162.1,3162.0,0.3968]
[1763493829794,0.90178,3161.8,3161.7,0.3968]
[1763493829997,0.51271,3161.6,3161.5,1.14602]
[1763493833298,0.90183,3161.5,3161.4,0.51274]
[1763493833594,0.90185,3161.4,3161.3,3.72056]
[1763493833790,0.90185,3161.4,3161.3,3.2078]
[1763493833990,0.90185,3161.4,3161.3,3.6046]
[1763493834693,0.90185,3161.4,3161.3,3.2078]
[1763493836101,0.90185,3161.4,3161.3,3.6046]
[1763493837301,0.90185,3161.4,3161.3,3.2078]
[1763493840293,0.90185,3161.4,3161.3,3.6101]
[1763493840603,0.90185,3161.4,3161.3,3.2078]
[1763493841209,0.90185,3161.4,3161.3,3.6101]
[1763493841899,0.90968,3161.2,3161.1,0.00474548]
[1763493842100,4.11748,3161.2,3161.1,0.00474548]
[1763493843303,4.11748,3161.2,3161.1,0.40704548]
[1763493844302,3.72058,3161.2,3161.1,0.40704548]
[1763493844699,3.72058,3161.2,3161.1,0.91984548]
[1763493845405,4.11748,3161.2,3161.1,0.40704548]
[1763493845799,4.11748,3161.2,3161.1,0.00474548]
[1763493846307,4.85991413,3161.2,3161.1,0.00474548]
[1763493850411,0.90981,3160.4,3160.3,3.6101]
[1763493851813,0.90981,3160.4,3160.3,4.12303]
[1763493852314,0.51291,3160.4,3160.3,4.12303]
[1763493852716,0.51291,3160.4,3160.3,3.6101]
[1763493853015,0.90986,3160.1,3160.0,0.24531008]
[1763493853314,0.90986,3160.1,3160.0,0.64761008]
[1763493853513,0.90986,3160.1,3160.0,1.16058008]
[1763493853714,0.51296,3160.1,3160.0,1.16058008]
[1763493855409,0.51296,3160.1,3160.0,0.64761008]
[1763493856013,0.90986,3160.1,3160.0,0.64761008]
[1763493856313,0.51296,3160.1,3160.0,1.16058008]
[1763493857015,0.51294,3160.4,3160.3,0.51292]
[1763493857220,0.00474548,3160.7,3160.6,0.51288]
[1763493857519,0.00474548,3160.7,3160.6,0.91518]
[1763493857911,0.51760548,3160.7,3160.6,0.4023]
[1763493858710,0.51760548,3160.7,3160.6,0.91518]
[1763493860213,0.51760548,3160.7,3160.6,0.4023]
[1763493861707,0.51760548,3160.7,3160.6,0.91518]
[1763493863125,0.00474548,3160.7,3160.6,0.91518]
[1763493865222,0.51279,3161.3,3161.2,0.51277]
[1763493865524,0.87749,3161.3,3161.2,3.2078]
[1763493866728,0.87749,3161.3,3161.2,3.5669]
[1763493868028,0.87749,3161.3,3161.2,3.2078]
[1763493868930,0.87153,3160.9,3160.8,0.87314]
[1763493869328,0.51283,3160.9,3160.8,0.87314]
[1763493870524,0.87153,3160.9,3160.8,0.87314]
[1763493871914,0.87153,3160.9,3160.8,0.3603]
[1763493872124,0.87153,3160.9,3160.8,0.87314]
[1763493872329,0.51283,3160.9,3160.8,0.87314]
[1763493872730,0.87153,3160.9,3160.8,0.3603]
[1763493873321,0.87153,3160.9,3160.8,0.87314]
[1763493873830,0.51283,3160.9,3160.8,0.87314]
[1763493875331,0.51278,3161.3,3161.2,0.87306]
[1763493875631,0.51278,3161.3,3161.2,0.3603]
[1763493875632,0.87148,3161.3,3161.2,0.3603]
[1763493875832,0.87148,3161.3,3161.2,0.87308]
[1763493876028,0.51278,3161.3,3161.2,0.87308]
[1763493877329,0.5128,3161.1,3161.0,4.2885]
[1763493877530,0.51278,3161.2,3161.1,0.87307]
[1763493879333,0.51278,3161.2,3161.1,0.3603]
[1763493879536,0.87148,3161.2,3161.1,0.8731]
[1763493879831,0.87148,3161.2,3161.1,0.3603]
[1763493881040,3.2078,3161.4,3161.0,3.2078]
[1763493881041,0.8715,3161.1,3161.0,3.2078]
[1763493881429,0.87156,3160.8,3160.7,0.3603]
[1763493881937,0.87156,3160.8,3160.7,0.87316]
[1763493887933,0.51283,3161.0,3160.9,0.87313]
[1763493888135,3.2078,3161.4,3161.3,0.3603]
[1763493888444,0.8715,3161.1,3161.0,4.28851]
[1763493888642,1.6140395,3161.1,3161.0,4.28851]
[1763493888838,1.6140395,3161.1,3161.0,3.2078]
[1763493891841,1.6140395,3161.1,3161.0,3.5681]
[1763493892242,1.6140395,3161.1,3161.0,3.2078]
[1763493892433,1.6140395,3161.1,3161.0,3.5681]
[1763493892630,1.61289783,3161.1,3161.0,3.5681]
[1763493893442,1.25419783,3161.1,3161.0,4.28851]
[1763493894036,1.61289783,3161.1,3161.0,4.28851]
[1763493894546,1.61288942,3161.1,3161.0,4.28851]
[1763493894845,1.25418942,3161.1,3161.0,4.28851]
[1763493896047,1.25418942,3161.1,3161.0,3.7757]
[1763493896248,1.61288942,3161.1,3161.0,3.2078]
[1763493897143,1.61288942,3161.1,3161.0,3.5681]
[1763493897842,1.61288942,3161.1,3161.0,4.08091]
[1763493898246,1.61288942,3161.1,3161.0,3.5681]
[1763493900140,1.61288942,3161.1,3161.0,4.24471]
[1763493900446,1.56548942,3161.1,3161.0,3.7319]
[1763493900643,1.56548942,3161.1,3161.0,3.2078]
[1763493900839,1.56548942,3161.1,3161.0,3.7079]
[1763493902846,1.25418942,3161.1,3161.0,3.7079]
[1763493903034,1.25418942,3161.1,3161.0,4.22071]
[1763493905346,1.25429727,3161.1,3161.0,3.7079]
[1763493905551,1.56559727,3161.1,3161.0,3.7079]
[1763493906051,1.25429727,3161.1,3161.0,4.22071]
[1763493906640,1.56559727,3161.1,3161.0,4.22071]
[1763493906843,1.56559727,3161.1,3161.0,3.2078]
[1763493907043,0.1952,3161.0,3160.6,3.5239]
[1763493907239,0.82416,3160.7,3160.6,4.03678]
[1763493907851,0.82416,3160.7,3160.6,3.5239]
[1763493908150,0.82416,3160.7,3160.6,4.03678]
[1763493908343,0.51286,3160.7,3160.6,4.03678]
[1763493908542,1.1364622,3161.3,3161.2,0.3161]
[1763493908741,1.25440544,3161.3,3161.2,0.3161]
[1763493910054,1.25440544,3161.3,3161.2,0.82888]
[1763493910953,1.25440544,3161.3,3161.2,0.3161]
[1763493911453,1.56570544,3161.3,3161.2,0.3161]
[1763493911646,0.8241,3161.1,3161.0,0.3161]
[1763493911842,0.82414,3161.0,3160.9,0.82892]
[1763493912044,0.51284,3161.0,3160.9,0.82892]
[1763493912240,1.01934,3161.0,3160.9,0.3161]
[1763493912440,1.76096255,3161.0,3160.9,0.3161]
[1763493913649,1.76096255,3161.0,3160.7,0.51285]
[1763493913650,0.51293,3160.3,3160.2,3.5239]
[1763493913854,0.82423,3160.3,3160.2,3.5239]
[1763493914057,0.51293,3160.3,3160.2,4.03684]
[1763493914458,3.403,3161.0,3160.4,0.3161]
[1763493914658,0.51289,3160.6,3160.5,1.01298]
[1763493914960,1.2543995,3160.6,3160.5,1.01298]
[1763493915658,1.2543995,3160.6,3160.5,0.5001]
[1763493916159,1.5656995,3160.6,3160.5,0.5001]
[1763493916467,1.5656995,3160.6,3160.5,0.3161]
[1763493917564,0.82421,3160.4,3160.3,0.82902]
[1763493918461,0.82421,3160.4,3160.2,3.2078]
[1763493918462,0.82423,3160.3,3160.2,3.2078]
[1763493918663,1.57324853,3160.3,3160.2,3.2078]
[1763493919265,0.82423,3160.3,3160.2,3.2078]
[1763493919464,0.82423,3160.3,3160.2,3.5239]
[1763493919865,0.51293,3160.3,3160.2,4.03684]
[1763493920057,0.51292,3160.5,3160.4,0.82899]
[1763493920253,0.51289,3160.5,3160.4,0.82899]
[1763493921376,0.51288,3160.6,3160.5,0.98516]
[1763493922075,0.81508,3160.6,3160.5,0.2946]
[1763493922581,0.51288,3160.6,3160.5,0.4723]
[1763493923781,0.51288,3160.6,3160.5,0.98519]
[1763493926467,3.2078,3161.0,3160.9,0.2946]
[1763493926668,1.26094893,3161.0,3160.9,0.80741]
[1763493926868,0.51279,3161.2,3161.1,0.80739]
[1763493927369,1.26084241,3161.2,3161.1,0.80739]
[1763493927575,1.26084241,3161.2,3161.1,4.01519]
[1763493927770,0.51275,3161.5,3161.4,0.51273]
[1763493927966,0.51275,3161.5,3161.4,0.81683]
[1763493928165,0.00474548,3161.6,3161.5,0.98863]
[1763493928166,0.75272754,3161.6,3161.5,0.98863]
[1763493928370,0.00474548,3161.6,3161.5,4.19643]
[1763493934779,4.548e-05,3161.6,3161.5,4.19643]
[1763493938891,4.548e-05,3161.6,3161.5,8.40943]
[1763493939182,0.51275548,3161.6,3161.5,4.19643]
[1763493939388,0.81855548,3161.6,3161.5,4.19643]
[1763493939783,0.81855548,3161.6,3161.5,3.6837]
[1763493940178,0.51275548,3161.6,3161.5,4.19643]
[1763493940583,4.548e-05,3161.6,3161.5,3.89233]
[1763493942782,0.00288962,3162.1,3162.0,0.51265]
[1763493942984,0.00288962,3162.1,3162.0,4.19635]
[1763493944488,0.00474548,3162.4,3162.3,0.8167]
[1763493944893,0.31054548,3162.4,3162.3,0.8167]
[1763493945490,0.31364951,3162.4,3162.3,0.8206342]
[1763493945794,0.82623951,3162.4,3162.3,0.8206342]
[1763493945990,0.00784951,3162.4,3162.3,0.8206342]
[1763493947107,4e-05,3163.3,3162.3,0.8206342]
[1763493947108,0.5125,3163.1,3163.0,0.95338]
[1763493947295,4e-05,3163.3,3163.0,3.3446]
[1763493947696,0.51247,3163.2,3163.1,0.51247]
[1763493947905,0.51248,3163.3,3163.2,0.81656]
[1763493948108,0.82213415,3163.3,3163.2,0.81656]
[1763493948499,0.30969415,3163.3,3163.2,0.81656]
[1763493948798,0.00389415,3163.3,3163.2,0.81656]
[1763493950005,0.51633415,3163.3,3163.2,0.81656]
[1763493950405,0.81827,3163.1,3163.0,3.6487]
[1763493950604,0.81827,3163.1,3163.0,3.5119]
[1763493950800,0.81827,3163.1,3162.5,0.1368]
[1763493950801,0.51255,3162.6,3162.5,0.95346]
[1763493951109,0.81835,3162.6,3162.5,0.3041]
[1763493951409,0.51254,3162.7,3162.6,0.3041]
[1763493951704,0.51254,3162.7,3162.6,0.81665]
[1763493951905,0.81834,3162.7,3162.6,0.81665]
[1763493952407,0.81834,3162.7,3162.6,0.3041]
[1763493954411,0.81834,3162.7,3162.6,0.81665]
[1763493954711,0.81834,3162.7,3162.6,0.3041]
[1763493955103,0.81834,3162.7,3162.6,0.81665]
[1763493955510,0.81834,3162.7,3162.6,0.3041]
[1763493956008,0.81834,3162.7,3162.6,0.81665]
[1763493956510,0.81834,3162.7,3162.6,0.3041]
[1763493956901,0.81834,3162.7,3162.6,0.81665]
[1763493960005,0.51254,3162.7,3162.6,0.81665]
[1763493960408,0.51252,3163.0,3162.9,0.5125]
[1763493960708,0.51633415,3163.3,3163.2,0.78426]
[1763493961103,0.94669,3163.0,3162.9,3.4796]
[1763493961310,0.51249,3163.0,3162.9,3.9921]
[1763493963698,0.51249,3163.0,3162.9,0.7843]
[1763493963899,0.00389415,3163.3,3163.0,0.4312]
[1763493964203,0.51634415,3163.3,3163.2,0.78426]
[1763493964509,0.00389415,3163.3,3163.2,0.78426]
[1763493964703,0.78603415,3163.3,3163.2,0.78426]
[1763493965109,0.78603415,3163.3,3163.2,3.99206]
[1763493965303,0.78603415,3163.3,3163.2,3.4796]
[1763493965705,0.78603415,3163.3,3163.2,3.99206]
[1763493966903,0.2697,3162.8,3162.7,3.99213]
[1763493967101,0.00389415,3163.3,3162.7,3.99213]
[1763493967305,0.51252,3162.8,3162.7,3.99213]
[1763493967909,0.5125,3163.0,3162.9,0.2718]
[1763493968513,0.51247,3163.2,3163.1,0.51246]
[1763493968714,0.51247,3163.2,3163.1,0.78426]
[1763493969016,0.78217,3163.2,3163.1,0.2718]
[1763493969214,0.78221,3162.9,3162.8,0.2718]
[1763493969705,0.78224,3162.7,3162.6,0.061]
[1763493969909,3.99004,3162.7,3162.6,0.061]
[1763493970612,0.78229,3162.4,3162.3,3.4835342]
[1763493971414,0.2697,3162.7,3162.3,3.46558246]
[1763493971614,0.78224,3162.7,3162.6,0.2718]
[1763493972014,0.2697,3162.4,3162.3,3.4835342]
[1763493972516,0.2697,3162.4,3162.3,3.7243242]
[1763493972912,0.2697,3162.4,3162.3,3.9961242]
[1763493973815,0.78229,3162.4,3162.3,3.9961242]
[1763493975221,0.51259,3162.4,3162.3,3.9961242]
[1763493975718,0.78227,3162.7,3162.6,0.78435]
[1763493975915,0.51249,3163.0,3162.9,0.78429]
[1763493976116,1.2585197,3163.0,3162.9,0.78429]
[1763493978918,1.5282197,3163.0,3162.9,0.78429]
[1763493979125,1.5282197,3163.0,3162.9,0.2718]
[1763493979716,0.78225,3162.7,3162.6,0.2718]
[1763493980213,0.94677,3162.5,3162.4,0.061]
[1763493980420,0.94677,3162.5,3162.4,0.57359]
[1763493980616,0.78227,3162.5,3162.4,0.84539]
[1763493981224,0.92057,3162.5,3162.4,0.061]
[1763493981622,0.92057,3162.5,3162.4,0.57359]
[1763493981827,0.92057,3162.5,3162.4,0.061]
[1763493982516,0.76499,3162.4,3162.3,3.9670342]
[1763493982810,0.76499,3162.4,3162.3,3.4544342]
[1763493983020,1.5095997,3162.4,3162.3,0.0039342]
[1763493983225,0.76499,3162.4,3162.3,0.0039342]
[1763493985924,1.50916478,3162.4,3162.3,0.0039342]
[1763493986230,0.76499,3162.4,3162.3,0.0039342]
[1763493986433,1.50903477,3162.4,3162.3,0.0039342]
[1763493988434,0.76499,3162.4,3162.3,0.0039342]
[1763493989824,3.2078,3162.6,3162.5,0.90057]
[1763493989825,3.455,3162.6,3162.5,0.90057]
[1763493990023,0.51257,3162.6,3162.5,0.90057]
[1763493990234,0.75977,3162.6,3162.5,0.51257]
[1763493990529,0.1645,3163.0,3162.4,0.76348]
[1763493990530,0.75979,3162.5,3162.4,0.76348]
[1763493992136,0.75979,3162.5,3162.4,0.2509]
[1763493992432,0.87249,3162.5,3162.4,0.76349]
[1763493993126,0.87249,3162.5,3162.4,0.2509]
[1763493993329,0.75979,3162.4,3162.3,0.5165342]
[1763493993631,0.75979,3162.4,3162.3,0.0039342]
[1763493994633,0.75979,3162.4,3162.3,0.2548342]
[1763493994824,0.51259,3162.4,3162.3,0.7674342]
[1763493995024,0.75979,3162.4,3162.3,0.7674342]
[1763493997430,0.75979,3162.4,3162.3,0.5165342]
[1763494000037,0.75979,3162.4,3162.3,0.7674342]
[1763494000235,0.51259,3162.4,3162.3,0.7674342]
[1763494001032,0.75979,3162.4,3162.3,0.7674342]
[1763494001238,0.51259,3162.4,3162.3,0.7674342]
[1763494001539,0.75979,3162.4,3162.3,0.7674342]
[1763494003438,0.75979,3162.4,3162.3,0.2548342]
[1763494003938,0.2472,3162.4,3162.3,0.7674342]
[1763494004238,1.50465712,3162.4,3162.3,0.0039342]
[1763494004635,0.74486712,3162.4,3162.3,0.7674342]
[1763494004836,0.51256,3162.6,3162.5,0.388]
[1763494005041,1.50452629,3162.6,3162.5,0.2509]
[1763494005238,0.75977,3162.5,3162.4,0.51258]
[1763494005443,0.75977,3162.5,3162.4,0.76348]
[1763494005642,0.51257,3162.5,3162.4,0.76348]
[1763494006842,0.75977,3162.5,3162.4,0.76348]
[1763494010246,0.87247,3162.5,3162.4,0.51258]
[1763494010441,0.75979,3162.4,3162.3,0.2548342]
[1763494010643,1.50676535,3162.4,3162.3,0.0039342]
[1763494011649,0.75988,3161.8,3161.7,0.00474548]
[1763494011945,1.50703859,3161.8,3161.7,0.00474548]
[1763494012239,0.2472,3160.9,3160.8,0.51283]
[1763494012434,0.2472,3160.9,3160.8,3.97153]
[1763494012846,0.24982095,3160.9,3160.8,3.97472243]
[1763494013139,0.00262095,3160.9,3160.8,3.97472243]
[1763494014840,0.51273,3161.6,3161.5,0.88393]
[1763494015234,0.51273,3161.6,3161.5,0.3712]
[1763494015440,0.75993,3161.6,3161.5,0.88393]
[1763494015842,0.76297235,3161.6,3161.5,0.3712]
[1763494016542,0.00304235,3161.6,3161.5,0.90073]
[1763494020449,0.73695,3161.4,3161.3,3.2078]
[1763494020841,0.73695,3161.4,3161.3,3.4407]
[1763494021745,0.51275,3161.4,3161.3,3.95346]
[1763494022650,0.73695,3161.4,3161.3,3.95346]
[1763494023643,0.51275,3161.4,3161.3,3.95346]
[1763494024151,0.73695,3161.4,3161.3,3.95346]
[1763494026451,0.2242,3161.4,3161.3,3.95346]
[1763494026647,0.22724235,3161.6,3161.5,0.89213]
[1763494027250,0.73695,3161.4,3161.3,3.2078]
[1763494028350,0.73696,3161.3,3161.2,0.74568]
[1763494031054,0.51276,3161.3,3161.2,0.74568]
[1763494032155,0.73696,3161.3,3161.2,0.74568]
[1763494032351,0.2242,3161.3,3160.9,3.2078]
[1763494032558,0.88101,3161.0,3160.9,3.2078]
[1763494033147,0.73703,3160.9,3160.8,0.00319243]
[1763494033352,0.1382,3160.0,3159.5,3.3543]
[1763494033550,0.73724,3159.6,3159.5,3.2078]
[1763494033750,0.2242,3159.4,3159.3,0.2329]
[1763494033956,0.2242,3159.4,3159.3,0.74599]
[1763494034165,0.73727,3159.4,3159.3,0.74599]
[1763494034550,0.2242,3159.4,3159.3,0.74911595]
[1763494034955,0.2242,3159.6,3159.5,0.74595]
[1763494035155,0.00474548,3159.7,3159.6,0.74594]
[1763494035366,0.51776548,3159.7,3159.6,0.74594]
[1763494035659,0.74196548,3159.7,3159.6,0.74594]
[1763494036559,0.00474548,3159.7,3159.6,0.74594]
[1763494038364,0.2242,3159.6,3159.5,3.72085]
[1763494038661,0.73724,3159.6,3159.5,3.95375]
[1763494038861,0.73724,3159.6,3159.5,3.4407]
[1763494039861,0.73724,3159.6,3159.5,3.95376]
[1763494040365,0.51776548,3159.7,3159.5,4.10026]
[1763494040566,0.74196548,3159.7,3159.6,0.74594]
[1763494041367,0.00474548,3159.7,3159.6,0.74594]
[1763494041867,0.74276548,3159.7,3159.6,0.74594]
[1763494043162,0.51776548,3159.7,3159.6,0.74594]
[1763494043660,0.00474548,3159.7,3159.6,0.74594]
[1763494045364,3.2078,3160.2,3160.1,0.74926]
[1763494046257,3.94574,3160.2,3160.1,0.51296]
[1763494046654,0.14134548,3160.5,3160.4,0.51291]
[1763494046865,0.36634548,3160.5,3160.4,3.72071]
[1763494047560,0.00474548,3160.5,3160.4,3.72071]
[1763494047760,3.3518,3161.5,3160.4,14.2838]
[1763494047761,0.2477,3161.3,3160.4,14.2838]
[1763494047960,0.2477,3161.3,3161.1,3.2078]
[1763494048364,0.3917,3161.5,3161.4,0.51275]
[1763494049363,0.144,3161.5,3161.4,0.51275]
[1763494049768,0.3917,3161.5,3161.4,0.51275]
[1763494050567,0.3917,3161.5,3161.1,3.21254548]
[1763494050568,0.2477,3161.4,3161.3,0.51276]
[1763494051469,0.2477,3161.2,3161.1,3.72532548]
[1763494051670,0.2477,3161.2,3161.1,0.51752548]
[1763494051866,0.76048,3161.2,3161.1,0.00474548]
[1763494054976,0.76048,3161.2,3160.3,3.2078]
[1763494054977,0.2477,3160.4,3160.3,3.2078]
[1763494055578,0.1411,3160.5,3160.3,3.2078]
[1763494055775,0.65401,3160.5,3160.3,3.2078]
[1763494055973,0.76061,3160.4,3160.3,3.2078]
[1763494056773,0.76061,3160.4,3160.3,3.72073]
[1763494057570,0.76061,3160.4,3160.3,3.2078]
[1763494058877,0.76061,3160.4,3160.3,3.72073]
[1763494060380,0.51291,3160.4,3160.3,3.72073]
[1763494060781,0.9017,3160.5,3160.4,0.51291]
[1763494060978,0.9017,3160.5,3160.3,3.2078]
[1763494060979,0.1411,3161.0,3160.3,3.2078]
[1763494061179,0.1411,3161.0,3160.9,3.72063]
[1763494061778,0.65391,3161.0,3160.9,3.72063]
[1763494062083,0.1411,3161.0,3160.9,3.72063]
[1763494063776,0.65674,3161.5,3161.4,0.51275]
[1763494064176,0.144,3161.5,3161.4,0.51275]
[1763494067684,3.2078,3162.6,3162.4,0.51259]
[1763494067879,0.51251,3162.9,3162.4,0.51259]
[1763494068185,3.3489,3163.0,3162.4,0.51259]
[1763494068584,0.144756,3162.5,3162.4,0.5152808]
[1763494069990,0.144756,3162.5,3162.4,0.76163179]
[1763494074393,0.392456,3162.5,3162.4,0.76163179]
[1763494074695,0.144756,3162.5,3162.4,0.76163179]
[1763494075486,0.392456,3162.5,3162.4,0.76163179]
[1763494077698,0.144756,3162.5,3162.4,0.76163179]
[1763494078495,0.380856,3162.5,3162.4,0.76163179]
[1763494078695,0.144756,3162.5,3162.4,0.76163179]
[1763494080695,0.893426,3162.5,3162.4,0.5152808]
[1763494082397,0.893426,3162.5,3162.4,0.0026908]
[1763494082699,0.893426,3162.5,3162.4,0.5152808]
[1763494082897,0.144756,3162.5,3162.4,0.5152808]
[1763494083099,0.893426,3162.5,3162.4,0.5152808]
[1763494083403,0.380856,3162.5,3162.4,0.5152808]
[1763494083900,0.893426,3162.5,3162.4,0.5152808]
[1763494085200,0.893426,3162.5,3162.3,3.2078]
[1763494085201,0.1364,3161.5,3161.4,3.72055]
[1763494085394,0.88523,3161.5,3161.4,3.72055]
[1763494085595,0.3725,3161.5,3161.4,3.72055]
[1763494086110,0.88523,3161.5,3161.4,3.72055]
[1763494086300,0.88523,3161.5,3161.4,3.72425142]
[1763494086603,0.3725,3161.5,3161.4,3.72425142]
[1763494090214,0.88515,3162.0,3161.9,0.51267]
[1763494090413,0.2361,3161.8,3161.7,0.51269]
[1763494090906,0.2361,3161.8,3161.4,3.21150142]
[1763494090907,0.2361,3161.7,3161.4,3.21150142]
[1763494091100,0.1364,3162.0,3161.4,3.21150142]
[1763494091101,0.3725,3161.5,3161.4,3.72425142]
[1763494091306,0.88523,3161.5,3161.4,3.72425142]
[1763494091811,0.3725,3161.5,3161.4,3.72425142]
[1763494093726,0.88523,3161.5,3161.4,3.72425142]
[1763494094325,0.3725,3161.5,3161.4,3.72425142]
[1763494095127,0.88523,3161.5,3161.4,3.72425142]
[1763494096225,0.3725,3161.5,3161.4,3.72425142]
[1763494096426,0.88523,3161.5,3161.4,3.72425142]
[1763494096726,0.88523,3161.5,3161.4,3.21150142]
[1763494096920,0.74888,3161.2,3161.1,0.00474548]
[1763494097328,0.74896,3160.7,3160.6,3.2078]
[1763494098014,0.74896,3160.7,3160.6,3.21013073]
[1763494098625,0.74896,3160.7,3160.6,3.77381073]
[1763494099018,0.74896,3160.7,3160.6,3.72301073]
[1763494099223,0.74896,3160.7,3160.6,3.21013073]
[1763494103936,0.74896,3160.7,3160.6,3.72301073]
[1763494104134,0.74896,3160.7,3160.6,3.77381073]
[1763494104336,0.89915548,3161.0,3160.9,0.0508]
[1763494104535,0.75803,3160.9,3160.8,0.51284]
[1763494104736,0.75806,3160.7,3160.6,3.72299073]
[1763494104939,0.75806,3160.7,3160.6,3.77379073]
[1763494105329,0.51286,3160.7,3160.6,3.77379073]
[1763494106141,0.75806,3160.7,3160.6,3.77379073]
[1763494107128,0.75806,3160.7,3160.6,3.21013073]
[1763494107432,0.75806,3160.7,3160.6,3.72301073]
[1763494109539,0.75806,3160.7,3160.6,3.77391073]
[1763494110442,0.1364,3161.5,3161.4,0.56365]
[1763494110635,0.87653,3161.5,3161.4,0.0509]
[1763494110840,0.3638,3161.5,3161.4,0.56365]
[1763494111443,0.87653,3161.5,3161.4,0.56365]
[1763494111643,0.87653,3161.5,3161.4,0.51275]
[1763494112143,0.74017,3161.4,3161.3,0.51276]
[1763494113738,0.1364,3161.5,3161.4,0.56365]
[1763494113945,3.9479,3161.7,3161.6,0.56361]
[1763494114241,3.2078,3161.7,3161.6,0.56361]
[1763494114444,0.00474548,3161.8,3161.7,0.5636]
[1763494115142,4.548e-05,3161.8,3161.7,0.5636]
[1763494117346,3.352556,3162.5,3162.4,0.55879]
[1763494117347,0.003656,3162.5,3162.4,0.55879]
[1763494117648,0.003656,3162.5,3162.4,3.76659]
[1763494117946,0.1407,3162.0,3161.9,0.0462]
[1763494118145,0.1407,3162.0,3161.9,0.55887]
[1763494118848,0.00474548,3162.3,3161.9,0.55887]
[1763494118849,0.00474548,3162.3,3162.2,0.55882]
[1763494119347,0.3681,3162.0,3161.9,3.72047]
[1763494119649,0.3681,3162.0,3161.9,3.76667]
[1763494120745,0.1407,3162.0,3161.9,3.76667]
[1763494123649,0.3681,3162.0,3161.9,3.76667]
[1763494124344,0.51267,3161.9,3161.6,0.00474548]
[1763494124551,0.74007,3161.9,3161.8,0.51268]
[1763494126354,0.74007,3161.9,3161.8,0.55888]
[1763494126744,0.1407,3162.0,3161.9,0.51267]
[1763494126948,0.1407,3162.0,3161.9,0.55887]
[1763494127458,0.3681,3162.0,3161.9,0.55887]
[1763494128757,0.88075,3162.0,3161.9,0.55887]
[1763494129655,0.3681,3162.0,3161.9,0.55887]
[1763494129950,0.1407,3162.0,3161.9,0.55887]
[1763494130255,0.65335,3162.0,3161.9,0.55887]
[1763494130854,0.1407,3162.0,3161.9,0.55887]
[1763494131056,0.1407,3162.0,3161.9,3.76667]
[1763494131643,0.74003,3162.2,3162.1,0.55883]
[1763494132348,0.74003,3162.2,3162.1,0.51263]
[1763494132555,0.51265,3162.1,3162.0,0.51265]
[1763494132850,0.74005,3162.1,3162.0,0.51265]
[1763494133754,0.7401,3161.7,3161.6,0.51744548]
[1763494134061,0.7401,3161.7,3161.6,0.70434548]